[Event "Niedersachsen-ch B 2024"]
[Site "Verden Aller"]
[Date "2024.01.07"]
[Round "7.31"]
[White "Rinke, Alexander"]
[Black "Pfuhl, Lars"]
[Result "0-1"]
[ECO "B11"]
[WhiteElo "1296"]
[BlackElo "1530"]
[Annotator "NA RC"]
[PlyCount "92"]
[EventDate "2024.01.01"]
[EventType "swiss"]
[EventCountry "GER"]
[SourceTitle "playchess.com"]
[Source "ChessBase"]
[SourceQuality "1"]
[TimeControl "40/5400+30:1800+30"]

1. e4 {[%emt 0:04:40]} c6 {[%emt 0:00:09]} 2. Nf3 {[%emt 0:00:11]} d5 {[%emt 0:00:09]} 3. Nc3 {[%emt 0:00:20]} Bg4 {[%emt 0:00:06]} 4. h3 {[%emt 0:00:07]} Bh5 {[%emt 0:01:14]} 5. d3 {[%emt 0:06:39]} e6 {[%emt 0:03:48]} 6. Bf4 {[%emt 0:03:33]} Bd6 {[%emt 0:03:15]} 7. e5 {[%emt 0:11:06]} Bb4 {[%emt 0:02:28]} 8. Bd2 {[%emt 0:04:03]} Nd7 {[%emt 0:05:10]} 9. g4 {[%emt 0:07:58]} Bg6 {[%emt 0:00:40]} 10. Qe2 {[%emt 0:01:52]} Qc7 {[%emt 0:04:05]} 11. O-O-O {[%emt 0:03:18]} c5 {[%emt 0:07:03]} 12. Nb5 {[%emt 0:05:39]} Bxd2+ {[%emt 0:06:39]} 13. Qxd2 {[%emt 0:01:53]} Qb6 {[%emt 0:03:19]} 14. Nd6+ {[%emt 0:08:22]} Kf8 {[%emt 0:02:17]} 15. h4 {[%emt 0:06:14]} Nxe5 {[%emt 0:04:37]} 16. Nxe5 {[%emt 0:01:31]} Qxd6 {[%emt 0:00:35]} 17. Qf4 {[%emt 0:01:10]} Ke7 {[%emt 0:10:08]} 18. h5 {[%emt 0:02:16]} f6 {[%emt 0:05:35]} 19. hxg6 {[%emt 0:01:46]} Qxe5 {[%emt 0:02:02]} 20. Qxe5 {[%emt 0:01:05]} fxe5 {[%emt 0:00:01]} 21. gxh7 {[%emt 0:00:38]} Nf6 {[%emt 0:01:05]} 22. Re1 {[%emt 0:01:10]} Kd6 {[%emt 0:02:27]} 23. Re3 {[%emt 0:02:08]} Rxh7 {[%emt 0:03:45]} 24. Rxh7 {[%emt 0:00:51]} Nxh7 {[%emt 0:00:01]} 25. Rh3 {[%emt 0:00:19]} Nf6 {[%emt 0:02:50]} 26. Be2 {[%emt 0:01:45]} Rf8 {[%emt 0:02:03]} 27. Rf3 {[%emt 0:00:40]} Ke7 {[%emt 0:01:14]} 28. g5 {[%emt 0:02:25]} Nd7 {[%emt 0:02:55]} 29. Rxf8 {[%emt 0:00:11]} Nxf8 {[%emt 0:01:24]} 30. Kd2 {[%emt 0:00:12]} Nh7 {[%emt 0:00:37]} 31. g6 {[%emt 0:00:07]} Nf8 {[%emt 0:00:38]} 32. Bh5 {[%emt 0:00:10]} Kf6 {[%emt 0:00:11]} 33. Ke3 {[%emt 0:00:06]} Nxg6 {[%emt 0:01:24]} 34. Bxg6 {[%emt 0:00:07]} Kxg6 {[%emt 0:00:09]} 35. Kf3 {[%emt 0:00:08]} Kf5 {[%emt 0:00:24]} 36. Kg3 {[%emt 0:00:32]} g5 {[%emt 0:00:32]} 37. f3 {[%emt 0:00:18]} b5 {[%emt 0:00:42]} 38. a3 {[%emt 0:00:59]} a5 {[%emt 0:00:24]} 39. a4 {[%emt 0:00:57]} bxa4 {[%emt 0:01:59]} 40. c3 {[%emt 0:00:14]} c4 {[%emt 0:01:14]} 41. dxc4 {[%emt 0:30:13]} dxc4 {[%emt 0:30:14]} 42. Kh3 {[%emt 0:00:09]} Kf4 {[%emt 0:00:13]} 43. Kg2 {[%emt 0:00:06]} e4 {[%emt 0:00:26]} 44. fxe4 {[%emt 0:00:07]} Kxe4 {[%emt 0:00:04]} 45. Kg3 {[%emt 0:00:03]} e5 {[%emt 0:00:20]} 46. Kf2 {[%emt 0:00:10]} Kd3 {[%emt 0:00:12]} 0-1

[Event "Niedersachsen-ch B 2024"]
[Site "Verden Aller"]
[Date "2024.01.07"]
[Round "7.32"]
[White "Middelberg, Simon"]
[Black "Buergener, Richard"]
[Result "0-1"]
[ECO "D36"]
[WhiteElo "1401"]
[BlackElo "1569"]
[Annotator "NA RC"]
[PlyCount "54"]
[EventDate "2024.01.01"]
[EventType "swiss"]
[EventCountry "GER"]
[SourceTitle "playchess.com"]
[Source "ChessBase"]
[SourceQuality "1"]
[TimeControl "40/5400+30:1800+30"]

1. d4 {[%emt 0:00:05]} Nf6 {[%emt 0:00:10]} 2. c4 {[%emt 0:00:06]} e6 {[%emt 0:00:43]} 3. Nf3 {[%emt 0:00:10]} d5 {[%emt 0:00:12]} 4. cxd5 {[%emt 0:01:19]} exd5 {[%emt 0:00:17]} 5. Nc3 {[%emt 0:00:43]} Be7 {[%emt 0:00:51]} 6. Bg5 {[%emt 0:00:56]} c6 {[%emt 0:00:43]} 7. e3 {[%emt 0:00:35]} O-O {[%emt 0:00:23]} 8. Bd3 {[%emt 0:00:56]} Re8 {[%emt 0:00:21]} 9. Qc2 {[%emt 0:01:10]} Nbd7 {[%emt 0:00:15]} 10. O-O {[%emt 0:01:04]} Nf8 {[%emt 0:00:35]} 11. h3 {[%emt 0:02:18]} Ng6 {[%emt 0:05:26]} 12. a3 {[%emt 0:05:58]} Ne4 {[%emt 0:00:54]} 13. Bxe7 {[%emt 1:21:40]} Qxe7 {[%emt 0:00:09]} 14. b4 {[%emt 0:00:00]} a6 {[%emt 0:05:18]} 15. Rfb1 {[%emt 0:00:00]} Bf5 {[%emt 0:12:45]} 16. Nd1 {[%emt 0:00:00]} Qf6 {[%emt 0:07:15]} 17. a4 {[%emt 0:00:00]} Bxh3 {[%emt 0:08:21]} 18. Bf1 {[%emt 0:00:00]} Bf5 {[%emt 0:05:13]} 19. Qa2 {[%emt 0:00:00]} Ng5 {[%emt 0:08:07]} 20. Rc1 {[%emt 0:00:00]} Nxf3+ {[%emt 0:00:30]} 21. gxf3 {[%emt 0:00:00]} Qg5+ {[%emt 0:00:27]} 22. Kh2 {[%emt 0:00:00]} Qh5+ {[%emt 0:00:25]} 23. Kg1 {[%emt 0:00:00]} Qxf3 {[%emt 0:00:50]} 24. Bg2 {[%emt 0:00:00]} Qg4 {[%emt 0:01:00]} 25. Kf1 {[%emt 0:00:00]} Bd3+ {[%emt 0:00:50]} 26. Kg1 {[%emt 0:00:00]} Nh4 {[%emt 0:00:43]} 27. f4 {[%emt 0:00:00]} Be4 {[%emt 0:01:04]} 0-1

[Event "Niedersachsen-ch B 2024"]
[Site "Verden Aller"]
[Date "2024.01.07"]
[Round "7.33"]
[White "Steven, Matthias"]
[Black "Tenninger, Joerg"]
[Result "1/2-1/2"]
[ECO "C01"]
[WhiteElo "1284"]
[BlackElo "1508"]
[Annotator "NA RC"]
[PlyCount "51"]
[EventDate "2024.01.01"]
[EventType "swiss"]
[EventCountry "GER"]
[SourceTitle "playchess.com"]
[Source "ChessBase"]
[SourceQuality "1"]
[TimeControl "40/5400+30:1800+30"]

1. e4 {[%emt 0:00:02]} e6 {[%emt 0:03:34]} 2. d4 {[%emt 0:00:48]} d5 {[%emt 0:00:40]} 3. exd5 {[%emt 0:01:21]} exd5 {[%emt 0:00:09]} 4. Bd3 {[%emt 0:01:29]} Nf6 {[%emt 0:00:46]} 5. Ne2 {[%emt 0:07:59]} Be6 {[%emt 0:01:11]} 6. Bf4 {[%emt 0:03:23]} Be7 {[%emt 0:00:44]} 7. Nbc3 {[%emt 0:01:05]} O-O {[%emt 0:00:11]} 8. Qd2 {[%emt 0:06:35]} Nbd7 {[%emt 0:00:59]} 9. O-O {[%emt 0:06:03]} a6 {[%emt 0:01:49]} 10. a4 {[%emt 0:05:58]} c6 {[%emt 0:05:07]} 11. Ng3 {[%emt 0:03:08]} Nb6 {[%emt 0:01:52]} 12. Nce2 {[%emt 0:02:12]} a5 {[%emt 0:05:43]} 13. c3 {[%emt 0:03:22]} Nc4 {[%emt 0:01:44]} 14. Bxc4 {[%emt 0:01:22]} dxc4 {[%emt 0:00:11]} 15. Rfe1 {[%emt 0:01:45]} Bd6 {[%emt 0:01:00]} 16. f3 {[%emt 0:04:33]} Re8 {[%emt 0:01:51]} 17. Ne4 {[%emt 0:05:20]} Be7 {[%emt 0:05:43]} 18. Rad1 {[%emt 0:03:09]} Nd5 {[%emt 0:02:48]} 19. Bg3 {[%emt 0:02:05]} b6 {[%emt 0:03:34]} 20. Nf4 {[%emt 0:02:50]} Bf5 {[%emt 0:04:53]} 21. Qf2 {[%emt 0:06:10]} Nxf4 {[%emt 0:03:33]} 22. Bxf4 {[%emt 0:00:39]} Be6 {[%emt 0:00:34]} 23. Qc2 {[%emt 0:04:51]} Bd5 {[%emt 0:01:18]} 24. Qe2 {[%emt 0:03:25]} Bf8 {[%emt 0:05:39]} 25. Qc2 {[%emt 0:01:32]} Be7 {[%emt 0:01:17]} 26. Re2 {[%emt 0:01:54]} 1/2-1/2

[Event "Niedersachsen-ch B 2024"]
[Site "Verden Aller"]
[Date "2024.01.07"]
[Round "7.34"]
[White "Fize, Aleksandrs"]
[Black "Nechitaylo, Lev"]
[Result "1-0"]
[ECO "D00"]
[WhiteElo "1307"]
[BlackElo "1456"]
[Annotator "NA RC"]
[PlyCount "47"]
[EventDate "2024.01.01"]
[EventType "swiss"]
[EventCountry "GER"]
[SourceTitle "playchess.com"]
[Source "ChessBase"]
[SourceQuality "1"]
[TimeControl "40/5400+30:1800+30"]

1. d4 {[%emt 0:00:02]} d5 {[%emt 0:00:17]} 2. Nc3 {[%emt 0:00:06]} Nf6 {[%emt 0:00:06]} 3. Bf4 {[%emt 0:00:07]} e6 {[%emt 0:00:19]} 4. e3 {[%emt 0:00:11]} Nc6 {[%emt 0:00:11]} 5. Nb5 {[%emt 0:00:41]} Bd6 {[%emt 0:00:10]} 6. Nxd6+ {[%emt 0:00:14]} cxd6 {[%emt 0:00:04]} 7. Nf3 {[%emt 0:00:08]} O-O {[%emt 0:00:45]} 8. c3 {[%emt 0:02:19]} Re8 {[%emt 0:00:43]} 9. Be2 {[%emt 0:01:26]} e5 {[%emt 0:00:17]} 10. Bg3 {[%emt 0:00:18]} Bf5 {[%emt 0:13:34]} 11. Nh4 {[%emt 0:02:58]} Bg6 {[%emt 0:00:28]} 12. Nxg6 {[%emt 0:00:31]} hxg6 {[%emt 0:01:07]} 13. h4 {[%emt 0:02:08]} Ne4 {[%emt 0:02:29]} 14. Bh2 {[%emt 0:01:59]} f5 {[%emt 0:05:48]} 15. h5 {[%emt 0:00:21]} gxh5 {[%emt 0:00:15]} 16. Bxh5 {[%emt 0:00:06]} Re6 {[%emt 0:00:27]} 17. Qf3 {[%emt 0:04:42]} f4 {[%emt 0:01:31]} 18. Qg4 {[%emt 0:02:26]} Re7 {[%emt 0:01:51]} 19. Bg6 {[%emt 0:01:42]} Kf8 {[%emt 0:03:33]} 20. Bxf4 {[%emt 0:00:35]} Rf7 {[%emt 0:03:28]} 21. Rh8+ {[%emt 0:00:42]} Ke7 {[%emt 0:00:06]} 22. Rxd8 {[%emt 0:00:40]} Nxd8 {[%emt 0:00:11]} 23. Bxf7 {[%emt 0:00:53]} Nxf7 {[%emt 0:00:08]} 24. Bg3 {[%emt 0:00:24]} 1-0

[Event "Niedersachsen-ch B 2024"]
[Site "Verden Aller"]
[Date "2024.01.07"]
[Round "7.35"]
[White "Sauer, Ben"]
[Black "Zweck, Gerhard"]
[Result "1/2-1/2"]
[ECO "C02"]
[WhiteElo "1427"]
[BlackElo "1414"]
[Annotator "NA RC"]
[PlyCount "133"]
[EventDate "2024.01.01"]
[EventType "swiss"]
[EventCountry "GER"]
[SourceTitle "playchess.com"]
[Source "ChessBase"]
[SourceQuality "1"]
[TimeControl "40/5400+30:1800+30"]

1. e4 {[%emt 0:00:02]} e6 {[%emt 0:04:06]} 2. d4 {[%emt 0:00:18]} d5 {[%emt 0:00:08]} 3. e5 {[%emt 0:00:58]} c5 {[%emt 0:00:10]} 4. c3 {[%emt 0:00:28]} Nc6 {[%emt 0:00:24]} 5. Nf3 {[%emt 0:00:29]} Qb6 {[%emt 0:00:19]} 6. b3 {[%emt 0:12:41]} Nge7 {[%emt 1:28:23]} 7. Be2 {[%emt 0:01:43]} Nf5 {[%emt 0:00:00]} 8. Bb2 {[%emt 0:04:03]} Bd7 {[%emt 0:00:00]} 9. g4 {[%emt 0:04:35]} Nh6 {[%emt 0:01:30]} 10. h3 {[%emt 0:02:28]} cxd4 {[%emt 0:00:00]} 11. cxd4 {[%emt 0:01:22]} Bb4+ {[%emt 0:00:00]} 12. Bc3 {[%emt 0:01:45]} O-O {[%emt 0:00:00]} 13. Bxb4 {[%emt 0:02:27]} Qxb4+ {[%emt 0:00:00]} 14. Qd2 {[%emt 0:00:38]} f6 {[%emt 0:00:00]} 15. exf6 {[%emt 0:00:46]} gxf6 {[%emt 0:00:00]} 16. O-O {[%emt 0:02:02]} Qxd2 {[%emt 0:00:00]} 17. Nbxd2 {[%emt 0:00:08]} Nf7 {[%emt 0:00:00]} 18. Bb5 {[%emt 0:02:21]} Kh8 {[%emt 0:00:00]} 19. Rfe1 {[%emt 0:01:42]} Rae8 {[%emt 0:00:00]} 20. Nf1 {[%emt 0:01:57]} Rg8 {[%emt 0:00:00]} 21. Kh2 {[%emt 0:03:04]} Ng5 {[%emt 0:00:00]} 22. Nxg5 {[%emt 0:01:38]} Rxg5 {[%emt 0:00:00]} 23. Bxc6 {[%emt 0:02:33]} bxc6 {[%emt 0:00:00]} 24. f4 {[%emt 0:01:57]} Rg6 {[%emt 0:00:00]} 25. Nd2 {[%emt 0:04:32]} h5 {[%emt 0:00:00]} 26. gxh5 {[%emt 0:04:21]} Rh6 {[%emt 0:00:00]} 27. Re3 {[%emt 0:03:07]} Rxh5 {[%emt 0:00:00]} 28. Rae1 {[%emt 0:08:14]} Rg8 {[%emt 0:00:00]} 29. Rg1 {[%emt 0:07:33]} Rxg1 {[%emt 0:00:00]} 30. Kxg1 {[%emt 0:00:05]} Rf5 {[%emt 0:00:00]} 31. Rf3 {[%emt 0:01:44]} Kh7 {[%emt 0:00:00]} 32. Kg2 {[%emt 0:01:28]} c5 {[%emt 0:00:00]} 33. dxc5 {[%emt 0:01:37]} Bc6 {[%emt 0:00:00]} 34. Kg3 {[%emt 0:02:33]} d4 {[%emt 0:00:00]} 35. Rf2 {[%emt 0:05:11]} Rxc5 {[%emt 0:00:00]} 36. Nc4 {[%emt 0:05:22]} Bd5 {[%emt 0:00:00]} 37. Rc2 {[%emt 0:01:20]} e5 {[%emt 0:00:00]} 38. fxe5 {[%emt 0:00:36]} fxe5 {[%emt 0:00:00]} 39. Rd2 {[%emt 0:02:33]} Bxc4 {[%emt 0:00:00]} 40. bxc4 {[%emt 0:00:08]} Rxc4 {[%emt 0:00:00]} 41. Kf3 {[%emt 0:30:42]} Rc3+ {[%emt 0:25:28]} 42. Ke4 {[%emt 0:03:06]} Re3+ {[%emt 0:00:27]} 43. Kd5 {[%emt 0:00:19]} Kg6 {[%emt 0:01:28]} 44. Rg2+ {[%emt 0:01:28]} Kh6 {[%emt 0:04:38]} 45. Kc4 {[%emt 0:01:18]} Rxh3 {[%emt 0:02:26]} 46. Re2 {[%emt 0:00:30]} Rc3+ {[%emt 0:00:27]} 47. Kd5 {[%emt 0:00:20]} Re3 {[%emt 0:00:27]} 48. Rg2 {[%emt 0:01:22]} d3 {[%emt 0:04:26]} 49. Kc4 {[%emt 0:02:14]} e4 {[%emt 0:00:46]} 50. Kc3 {[%emt 0:00:14]} Re2 {[%emt 0:06:35]} 51. Rxe2 {[%emt 0:00:06]} dxe2 {[%emt 0:00:17]} 52. Kd2 {[%emt 0:00:05]} e1=Q+ 53. Kxe1 {[%emt 0:00:04]} Kg5 {[%emt 0:01:31]} 54. Ke2 {[%emt 0:00:06]} Kf4 {[%emt 0:00:21]} 55. a4 {[%emt 0:00:35]} a5 {[%emt 0:02:26]} 56. Kf2 {[%emt 0:00:19]} e3+ {[%emt 0:00:39]} 57. Ke2 {[%emt 0:00:22]} Ke4 {[%emt 0:00:23]} 58. Ke1 {[%emt 0:00:12]} Kd3 {[%emt 0:00:00]} 59. Kd1 {[%emt 0:00:00]} Kc3 {[%emt 0:00:00]} 60. Ke2 {[%emt 0:00:00]} Kb3 {[%emt 0:00:00]} 61. Kxe3 {[%emt 0:00:00]} Kxa4 {[%emt 0:00:00]} 62. Kd2 {[%emt 0:00:00]} Kb3 {[%emt 0:00:00]} 63. Kc1 {[%emt 0:00:00]} Ka2 {[%emt 0:00:00]} 64. Kc2 {[%emt 0:00:00]} a4 {[%emt 0:00:00]} 65. Kc1 {[%emt 0:00:00]} Kb3 {[%emt 0:00:00]} 66. Kb1 {[%emt 0:00:00]} a3 {[%emt 0:00:00]} 67. Ka1 {[%emt 0:00:00]} 1/2-1/2